fUSD/lending_fUSD_20250524
["ID","MTS","AMOUNT","RATE_DAILY","PERIOD"]
[362165426,1748046643577,-19072.5518612,0.00027387,3]
[362165427,1748046643589,-1379.487387,0.00027397,4]
[362165428,1748046643599,-1379.487387,0.00027397,4]
[362165429,1748046643608,-1379.487387,0.00027397,4]
[362165430,1748046643617,-1379.487387,0.00027397,4]
[362165431,1748046643628,-161.18,0.00027397,2]
[362165432,1748046643637,-258.87,0.00027435,120]
[362165433,1748046643647,-23900.0,0.00027441,2]
[362165434,1748046643656,-18722.42955992,0.00027443,2]
[362165435,1748046643665,-150.0,0.000275,2]
[362165436,1748046643675,-1379.487387,0.00027534,4]
[362165437,1748046643686,-1379.487387,0.00027534,4]
[362165438,1748046643696,-1379.487387,0.00027534,4]
[362165439,1748046643706,-1937.2097477,0.00027537,2]
[362165440,1748046643716,-4000.0,0.00027556,4]
[362165441,1748046643725,-19072.5518612,0.00027557,3]
[362165442,1748046643734,-461.04,0.00027567,2]
[362165443,1748046643744,-424.61,0.00027634,2]
[362165444,1748046643754,-1747.76,0.00027639,2]
[362165445,1748046643763,-1379.487387,0.00027671,4]
[362165446,1748046643772,-416.91743422,0.00027693,17]
[362165447,1748046643781,-150.0,0.00027708,7]
[362165448,1748046643790,-213.69,0.0002771,2]
[362165449,1748046643799,-216.64,0.00027734,2]
[362165450,1748046643809,-4000.0,0.00027743,2]
[362165451,1748046643818,-1379.487387,0.00027808,4]
[362165452,1748046643827,-221.31594286,0.00027868,2]
[362165453,1748046643836,-244.77,0.00027883,2]
[362165454,1748046643845,-244.77,0.00027891,2]
[362165455,1748046643855,-2013.707,0.00027898,18]
[362165456,1748046643864,-222.939,0.00027898,18]
[362165457,1748046643873,-244.77,0.00027898,2]
[362165458,1748046643883,-244.77,0.00027905,2]
[362165459,1748046643892,-161.26,0.00027907,2]
[362165460,1748046643902,-244.77,0.00027913,2]
[362165461,1748046643912,-150.0,0.0002792,2]
[362165462,1748046643921,-244.77,0.0002792,2]
[362165463,1748046643930,-244.77,0.00027928,2]
[362165464,1748046643940,-244.77,0.00027935,2]
[362165465,1748046643950,-244.77,0.00027942,2]
[362165466,1748046643959,-1379.487387,0.00027945,4]
[362165467,1748046643969,-150.0,0.00027947,2]
[362165468,1748046643978,-244.77,0.0002795,2]
[362165469,1748046643987,-244.77,0.00027957,2]
[362165470,1748046643996,-244.77,0.00027964,2]
[362165471,1748046644006,-244.77,0.00027972,2]
[362165472,1748046644015,-246.28852755,0.00027975,2]
[362165473,1748046644024,-244.77,0.00027979,2]
[362165474,1748046644033,-244.77,0.00027986,2]
[362165475,1748046644042,-244.77,0.00027994,2]
[362165476,1748046644051,-244.77,0.00028001,2]
[362165477,1748046644060,-244.77,0.00028008,2]
[362165478,1748046644069,-244.77,0.00028016,2]
[362165479,1748046644079,-244.77,0.00028023,2]
[362165480,1748046644088,-1379.487387,0.00028082,4]
[362165481,1748046644098,-171.15864157,0.00028121,2]
[362165482,1748046644107,-1379.487387,0.00028219,4]
[362165483,1748046644116,-166.69,0.00028271,2]
[362165484,1748046644125,-1663.64,0.0002831,2]
[362165485,1748046644135,-2185.93410903,0.0002836,2]
[362165486,1748046644144,-416.91743422,0.00028417,19]
[362165487,1748046644154,-860.0,0.00028659,2]
[362165488,1748046644163,-18722.42955992,0.00028934,2]
[362165489,1748046644174,-154.27,0.00029,2]
[362165490,1748046644184,-424.61,0.00029015,2]
[362165491,1748046644194,-1505.606507,0.00029099,4]
[362165492,1748046644204,-1549.0,0.000291,2]
[362165493,1748046644214,-161.18,0.0002911,2]
[362165494,1748046644224,-416.91743422,0.00029141,20]
[362165495,1748046644233,-458.45,0.00029178,2]
[362165496,1748046644243,-200.0,0.00029255,117]
[362165497,1748046644254,-2378.36,0.00029361,2]
[362165498,1748046644265,-1000.0,0.000294,2]
[362165499,1748046644276,-165.26527776,0.00029467,2]
[362165500,1748046644285,-443.17771527,0.000296,2]
[362165501,1748046644295,-676.0,0.000296,2]
[362165502,1748046644305,-19072.5518612,0.00029662,3]
[362165503,1748046644314,-300.0,0.00029679,2]
[362165504,1748046644324,-150.0,0.00029697,2]
[362165505,1748046644333,-150.0,0.00029714,2]
[362165506,1748046644343,-2185.93410903,0.00029716,2]
[362165507,1748046644352,-150.0,0.00029727,2]
[362165508,1748046644363,-150.0,0.00029731,2]
[362165509,1748046644372,-1000.0,0.00029757,2]
[362165510,1748046644382,-150.0,0.00029759,2]
[362165511,1748046644392,-150.0,0.00029768,2]
[362165512,1748046644401,-151.11431704,0.00029768,2]
[362165513,1748046644411,-150.0,0.00029772,2]
[362165514,1748046644420,-150.0,0.00029776,2]
[362165515,1748046644429,-150.0,0.00029782,2]
[362165516,1748046644441,-150.0,0.00029797,2]
[362165517,1748046644450,-150.0,0.00029807,2]
[362165518,1748046644460,-150.0,0.00029807,2]
[362165519,1748046644470,-150.99,0.00029815,2]
[362165520,1748046644479,-999.99,0.00029815,2]
[362165521,1748046644488,-9999.99,0.00029815,2]
[362165522,1748046644498,-2854.78,0.00029815,2]
[362165523,1748046644511,-1551.54,0.00029815,2]
[362165524,1748046644520,-334.52,0.00029815,2]
[362165525,1748046644529,-150.99,0.00029815,2]
[362165526,1748046644539,-817.89,0.00029815,2]
[362165527,1748046644550,-150.0,0.00029817,2]
[362165528,1748046644559,-799.0,0.0002982,2]
[362165529,1748046644568,-1151.0,0.0002982,2]
[362165530,1748046644579,-154.0,0.0002982,2]
[362165531,1748046644589,-4052.0,0.0002982,2]
[362165532,1748046644598,-150.0,0.00029828,2]
[362165533,1748046644608,-150.0,0.00029829,2]
[362165534,1748046644618,-150.0,0.00029838,2]
[362165535,1748046644627,-150.0,0.0002984,2]
[362165536,1748046644637,-150.0,0.00029842,2]
[362165537,1748046644647,-601.65,0.00029843,2]
[362165538,1748046644657,-5000.0,0.00029852,2]
[362165539,1748046644667,-150.0,0.00029855,2]
[362165540,1748046644676,-150.0,0.00029855,2]
[362165541,1748046644689,-150.0,0.00029855,2]
[362165542,1748046644699,-150.0,0.0002986,2]
[362165543,1748046644708,-150.0,0.00029862,2]
[362165544,1748046644719,-416.91743422,0.00029866,21]
[362165545,1748046644728,-596.73182098,0.00029875,2]
[362165546,1748046644738,-150.0,0.00029876,2]
[362165547,1748046644748,-150.0,0.00029881,2]
[362165548,1748046644758,-1000.0,0.000299,2]
[362165549,1748046644768,-2500.0,0.000299,2]
[362165550,1748046644778,-1747.76,0.00029903,2]
[362165551,1748046644787,-275.97084109,0.00029904,2]
[362165552,1748046644797,-150.0,0.00029918,2]
[362165553,1748046644807,-150.0,0.00029922,2]
[362165554,1748046644816,-151.17,0.00029942,2]
[362165555,1748046644825,-151.17,0.00029942,2]
[362165556,1748046644834,-151.17,0.00029942,2]
[362165557,1748046644844,-38145.1037225,0.00029942,3]
[362165558,1748046644853,-863.66641959,0.00029942,3]
[362165559,1748046644862,-25000.0,0.00029951,2]
[362165560,1748046644872,-819.30876189,0.00029952,3]
[362165561,1748046644881,-35955.1194,0.00029952,2]
[362165562,1748046644891,-4005.8195,0.00029952,2]
[362165563,1748046644900,-1000.0,0.00029952,2]
[362165564,1748046644910,-150.0,0.00029953,2]
[362165565,1748046644919,-654.21421686,0.00029989,2]
[362165566,1748046645149,-151.17,0.0002999,2]
[362165567,1748046645160,-863.66641959,0.0002999,3]
[362165568,1748046645169,-390430.78290461,0.00029999,3]
[362165569,1748046645186,-1279.6,0.00029999,3]
[362165571,1748046645900,-551738.56124527,0.00029999,3]
[362165572,1748046645957,-26293.6568117,0.00029999,3]
[362165573,1748046646017,-1808.19999996,0.00029999,3]
[362165574,1748046646029,-869.7,0.00029999,3]
[362165575,1748046646180,-1310.0,0.00026771,2]
[362165576,1748046646192,-1064.5897,0.00029999,3]
[362165579,1748046646646,3093.46,0.00042543,60]
[362165580,1748046728336,223.0315306,0.00042543,60]
[362165581,1748047023072,500.0,0.00042541,60]
[362165582,1748047025729,5800.0,0.00013537,2]
[362165583,1748047048970,4064.98370682,0.00013529,2]
[362165584,1748047048990,1735.01629318,0.00013529,2]
[362165585,1748047054807,500.0,0.00042541,60]
[362165586,1748047108705,500.0,0.00042528,60]
[362165587,1748047122231,500.0,0.00042528,60]
[362165590,1748047556128,-151.0,0.00022417,2]
[362165591,1748047556149,-75.49322626,0.00022519,2]
[362165592,1748047628092,-1396.10050677,0.00022518,2]
[362165593,1748047636826,420.0,0.00042528,120]
[362165594,1748047637214,420.0,0.00042528,120]
[362165595,1748047637346,420.0,0.00042528,120]
[362165596,1748047637599,420.0,0.00042528,120]
[362165597,1748047637837,320.0,0.00042528,120]
[362165598,1748047643099,-1026.8095099,0.00022518,2]
[362165599,1748047644086,-149.00376971,0.00022518,2]
[362165600,1748047644112,-69.32939391,0.00022519,2]
[362165601,1748047647434,-34.99737983,0.00022519,2]
[362165602,1748047647455,-210.20037413,0.00023915,2]
[362165603,1748047647481,-39.81152197,0.00024433,2]
[362165604,1748047650234,-381.08172902,0.00024433,2]
[362165605,1748047650540,-200.0,0.0002477,2]
[362165606,1748047650562,-487.32955363,0.00024899,2]
[362165608,1748047754907,157.41,0.00013699,2]
[362165615,1748047832144,-211.739034,0.00024782,2]
[362165616,1748047832155,-157.41,0.00024907,2]
[362165617,1748047832165,-200.0,0.00024937,2]
[362165618,1748047832174,-1634.22,0.0002511,2]
[362165619,1748047832186,-300.0,0.0002518,2]
[362165620,1748047832195,-300.0,0.0002518,2]
[362165621,1748047832204,-1200.0,0.0002518,2]
[362165622,1748047832214,-8280.63015571,0.00025181,2]
[362165623,1748047832224,-306.36129891,0.000253,2]
[362165624,1748047832233,-168.31,0.00025591,2]
[362165625,1748047832242,-500.0,0.00025781,2]
[362165626,1748047832252,-344.0,0.00025795,2]
[362165627,1748047832261,-250.0,0.00025945,2]
[362165628,1748047832271,-1600.0,0.0002678,2]
[362165629,1748047832280,-6525.32951138,0.00026781,7]
[362165675,1748047838047,-300.0,0.0002518,2]
[362165676,1748047838057,-12846.31608945,0.00026781,7]
[362165677,1748047838101,-780.19798622,0.00026781,7]
[362165678,1748047838210,-1482.975,0.00026781,7]
[362165680,1748047838326,-155.12227772,0.00026781,7]
[362165790,1748047842238,-3145.05361523,0.00026781,7]
[362165791,1748047842248,-5459.16302725,0.00026781,7]
[362165792,1748047842265,-188.9442721,0.00026781,7]
[362165793,1748047842276,-286.15411693,0.000269,16]
[362165794,1748047842287,-483.01992106,0.00027049,2]
[362165795,1748047842300,-331.07,0.00027049,2]
[362165798,1748047843151,-667.87007894,0.00027049,2]
[362165799,1748047843165,-362.94,0.00027225,2]
[362165800,1748047843176,-2751.0,0.00027243,2]
[362165801,1748047843188,-420.0,0.00027274,2]
[362165802,1748047843199,-420.0,0.00027274,2]
[362165803,1748047843210,-21233.83150359,0.00027334,2]
[362165804,1748047843220,-647.7590844,0.00027343,2]
[362165805,1748047843230,-500.0,0.00027343,2]
[362165806,1748047843239,-500.0,0.00027343,2]
[362165807,1748047843250,-500.0,0.00027343,2]
[362165808,1748047843261,-500.0,0.00027343,2]
[362165809,1748047843272,-500.0,0.00027343,2]
[362165810,1748047843284,-457.00273369,0.00027343,2]
[362165811,1748047843295,-500.0,0.00027343,2]
[362165812,1748047843306,-500.0,0.00027343,2]
[362165813,1748047843317,-500.0,0.00027343,2]
[362165814,1748047843328,-500.0,0.00027343,2]
[362165815,1748047843339,-500.0,0.00027343,2]
[362165816,1748047843350,-500.0,0.00027343,2]
[362165817,1748047843361,-500.0,0.00027343,2]
[362165818,1748047843372,-154.572,0.00027344,2]
[362165819,1748047843383,-1310.0,0.00027344,2]
[362165820,1748047843394,-936.0,0.00027344,2]
[362165821,1748047843405,-631.0,0.00027344,2]
[362165822,1748047843415,-799.0,0.00027344,2]
[362165823,1748047843426,-586.0,0.00027344,2]
[362165824,1748047843438,-921.0,0.00027344,2]
[362165825,1748047843449,-554.0,0.00027344,2]
[362165826,1748047843461,-1258.0,0.00027344,2]
[362165828,1748047843471,-1461.0,0.00027344,2]
[362165830,1748047843482,-163.944,0.00027344,2]
[362165832,1748047843494,-2522.24562092,0.00027344,2]
[362165835,1748047843512,-987.8212861,0.00027344,2]
[362165838,1748047843532,-541.93309298,0.00027344,2]
[362165840,1748047843543,-6838.0,0.00027344,2]
[362165842,1748047843554,-150.384,0.00027344,2]
[362165844,1748047843564,-843.0,0.00027344,2]
[362165847,1748047843575,-881.0,0.00027344,2]
[362165849,1748047843587,-200.0,0.00027362,2]
[362165851,1748047843597,-1634.22,0.00027374,2]
[362165853,1748047843607,-1680.0,0.00027397,2]
[362165855,1748047843618,-161.18,0.00027397,2]
[362165857,1748047843628,-282.07065986,0.00027449,2]
[362165859,1748047843639,-286.15411683,0.00027452,17]
[362165860,1748047843650,-212.0,0.00027487,2]
[362165861,1748047843660,-204.00002,0.00027487,2]
[362165862,1748047843672,-254.76,0.00027557,2]
[362165863,1748047843685,-150.0,0.00027571,2]
[362165864,1748047843699,-150.0,0.000276,2]
[362165865,1748047843710,-676.65990055,0.000277,2]
[362165866,1748047843721,-155.77,0.00027756,2]
[362165867,1748047843733,-150.0,0.00027775,7]
[362165868,1748047843744,-250.0,0.00027809,2]
[362165869,1748047843755,-178.07,0.00027833,2]
[362165870,1748047843767,-23900.0,0.00027833,2]
[362165871,1748047843776,-500.0,0.0002795,5]
[362165872,1748047843786,-286.15411683,0.00028003,18]
[362165873,1748047843796,-805.83,0.00028219,2]
[362165874,1748047843806,-350.73,0.00028243,120]
[362165875,1748047843817,-161.24,0.00028352,2]
[362165876,1748047843828,-514.18,0.00028417,2]
[362165877,1748047843838,-3997.88,0.0002853,2]
[362165878,1748047843848,-286.15411683,0.00028555,19]
[362165879,1748047843860,-254.76,0.00028935,2]
[362165880,1748047843872,-500.0,0.00028961,5]
[362165881,1748047843886,-384.56695327,0.00028961,5]
[362165882,1748047843898,-500.0,0.00028961,5]
[362165883,1748047843908,-154.27,0.00029,2]
[362165884,1748047843919,-150.99,0.00029009,2]
[362165885,1748047843929,-8448.45,0.00029009,2]
[362165886,1748047843939,-2233.4,0.00029009,2]
[362165887,1748047843950,-999.99,0.00029009,2]
[362165888,1748047843960,-458.45,0.00029041,2]
[362165889,1748047843971,-805.83,0.00029041,2]
[362165890,1748047843981,-8579.1224334,0.00029078,2]
[362165891,1748047843992,-1204.485206,0.00029099,4]
[362165892,1748047844003,-1726.452,0.00029099,21]
[362165893,1748047844014,-286.15411683,0.00029107,20]
[362165894,1748047844024,-610.43,0.00029178,2]
[362165895,1748047844035,-1266.21,0.00029178,2]
[362165896,1748047844045,-457.65,0.00029178,2]
[362165897,1748047844055,-805.83,0.00029178,2]
[362165898,1748047844066,-352.02637332,0.00029308,2]
[362165899,1748047844077,-250.0,0.00029448,2]
[362165900,1748047844087,-587.0,0.00029541,2]
[362165901,1748047844096,-587.0,0.00029541,2]
[362165902,1748047844106,-1634.22,0.00029637,2]
[362165903,1748047844116,-286.15411683,0.00029659,21]
[362165904,1748047844126,-161.18,0.0002968,2]
[362165905,1748047844136,-1494.51644,0.0002969,2]
[362165906,1748047844146,-1000.0,0.000297,2]
[362165907,1748047844156,-8579.12243331,0.00029725,2]
[362165908,1748047844167,-150.0,0.00029748,2]
[362165909,1748047844178,-150.0,0.0002978,2]
[362165910,1748047844188,-150.0,0.000298,2]
[362165911,1748047844199,-150.0,0.0002988,2]
[362165912,1748047844210,-2500.0,0.0002989,2]
[362165913,1748047844220,-4906.5808,0.000299,10]
[362165914,1748047844233,-1000.0,0.000299,2]
[362165915,1748047844243,-7986.9768,0.000299,2]
[362165916,1748047844254,-5607.7193,0.000299,2]
[362165917,1748047844264,-1000.0,0.000299,2]
[362165918,1748047844275,-459.64323173,0.000299,2]
[362165919,1748047844284,-459.6432317,0.000299,2]
[362165920,1748047844295,-459.6432317,0.000299,2]
[362165921,1748047844306,-459.6432317,0.000299,2]
[362165922,1748047844316,-150.0,0.00029915,2]
[362165923,1748047844326,-4620.7272838,0.00029995,2]
[362165924,1748047844338,-193.92870502,0.00029999,2]
[362165925,1748047844348,-294.06279065,0.00029999,2]
[362165926,1748047844359,-15720.81666198,0.0003,40]
[362165927,1748047844370,-968.8898775,0.0003,4]
[362165928,1748047844380,-589.39467293,0.0003,5]
[362165929,1748047844391,-168.91426295,0.0003,15]
[362165930,1748047844403,-167.0024734,0.0003,2]
[362165931,1748047844415,-1000.0,0.0003,2]
[362165932,1748047844427,-200.48,0.00030009,2]
[362165933,1748047844438,-500.0,0.00030009,30]
[362165934,1748047844450,-2560.82350637,0.00030016,2]
[362165935,1748047844460,-55424.4275222,0.00030085,3]
[362165936,1748047844470,-38866.13267893,0.00030095,2]
[362165937,1748047846092,-4715.24374,0.00029995,2]
[362165938,1748047846146,-31.66769725,0.00029995,2]
[362165939,1748047846186,-396.73408441,0.00029995,2]
[362165940,1748047846204,-85166.55165375,0.00029995,2]
[362165941,1748047846314,-3245.14553684,0.00029995,2]
[362165942,1748047846393,-114.08994605,0.00029995,2]
[362165943,1748047846429,-676.86659964,0.00029995,2]
[362166238,1748047930148,-223.14565518,0.00027343,2]
[362166239,1748047931550,-76.85434482,0.00027343,2]
[362166240,1748047931573,-124.14565518,0.00027343,2]
[362166241,1748047933647,-175.85434482,0.00027343,2]
[362166242,1748047933669,-25.14565518,0.00027344,2]
[362166243,1748047935104,-259.13434482,0.00027344,2]
[362166244,1748047935127,-134.06798865,0.00027344,2]
[362166245,1748047937311,-240.90543288,0.00027344,2]
[362166246,1748047938829,-192.70470849,0.00027344,2]
[362166247,1748047939015,420.0,0.0004253,120]
[362166248,1748047939279,420.0,0.0004253,120]
[362166249,1748047939525,420.0,0.0004253,120]
[362166250,1748047939757,420.0,0.0004253,120]
[362166251,1748047940016,420.0,0.0004253,120]
[362166252,1748047940305,-205.0,0.00027344,2]
[362166253,1748047940351,420.0,0.0004253,120]
[362166254,1748047940584,420.0,0.0004253,120]
[362166255,1748047940819,420.0,0.0004253,120]
[362166256,1748047941062,420.0,0.0004253,120]
[362166257,1748047941294,355.211,0.0004253,120]
[362166258,1748047944505,-171.90880461,0.00027344,2]
[362166259,1748047946502,-206.41306537,0.00027344,2]
[362166260,1748047946525,-13.94813002,0.00027344,2]
[362166261,1748047948108,-224.90286998,0.00027344,2]
[362166262,1748047948132,-165.02713002,0.00027344,2]
[362166263,1748047949619,-48.30386998,0.00027344,2]
[362166264,1748047949641,-120.44613002,0.00027344,2]
[362166265,1748048004445,250.0,0.00015,2]
[362166266,1748048525394,151.0,0.00042529,120]
[362166267,1748048549681,168.93495645,0.00042529,120]
[362166268,1748048605714,3657.14374415,0.0004253,120]
[362166269,1748048625098,-168.12430606,0.00016712,2]
[362166270,1748048634317,3224.40498472,0.0004253,120]
[362166272,1748048701175,5867.46071803,0.0004253,60]
[362166273,1748048739115,-17.38569394,0.00016712,2]
[362166274,1748048739139,-200.0,0.00018384,2]
[362166275,1748048739160,-250.0,0.00018384,2]
[362166276,1748048739180,-574.792,0.00026291,2]
[362166277,1748048739199,-400.37237327,0.00026291,2]
[362166278,1748048759383,500.0,0.0004253,120]
[362166279,1748048767227,157.41,0.00013699,2]
[362166280,1748048792088,-70.75362673,0.00026291,2]
[362166281,1748048792110,-153.2042647,0.00026807,117]
[362166283,1748048825346,500.0,0.0004253,120]
[362166284,1748048825396,228.48069974,0.0004253,120]
[362166285,1748048825465,179.7695246,0.0004253,120]
[362166286,1748048825966,518.5,0.0004253,120]
[362166287,1748048826656,537.6845,0.0004253,120]
[362166288,1748048827329,557.5788265,0.0004253,120]
[362166289,1748048830006,207.4,0.0004253,120]
[362166290,1748048832087,-46.7957353,0.00026807,117]
[362166291,1748048832108,-250.0,0.00026807,2]
[362166292,1748048832129,-87.24587772,0.00027133,117]
[362166293,1748048848076,-112.75412228,0.00027133,117]
[362166294,1748048848097,-171.94393449,0.00027228,2]
[362166295,1748048852091,-1036.67759088,0.00027228,2]
[362166296,1748048958114,-1389.08,0.00026097,2]
[362166297,1748048976997,420.0,0.00042535,120]
[362166298,1748048977221,420.0,0.00042535,120]
[362166299,1748048977542,420.0,0.00042535,120]
[362166300,1748048977778,252.75227419,0.00042535,120]
[362166303,1748049032292,-300.0,0.00027226,2]
[362166304,1748049032303,-285.87801826,0.00027227,2]
[362166305,1748049032458,-14.12198174,0.00027227,2]
[362166306,1748049032468,-500.0,0.00027227,2]
[362166307,1748049032478,-500.0,0.00027227,2]
[362166308,1748049032488,-217.44474819,0.00027227,2]
[362166309,1748049032497,-500.0,0.00027227,2]
[362166310,1748049032507,-616.66144909,0.00027227,2]
[362166311,1748049032517,-10721.12783721,0.00027228,2]
[362166347,1748049040519,-225.0,0.00027226,2]
[362166348,1748049040530,-126274.70814894,0.00027228,2]
[362166349,1748049040540,-4052.0,0.00027342,2]
[362166350,1748049040550,-154.0,0.00027342,2]
[362166351,1748049040559,-62.76286998,0.00027344,2]
[362166352,1748049040571,-500.0,0.00027344,2]
[362166353,1748049040580,-150.331,0.00027354,2]
[362166354,1748049040589,-261.967,0.00027354,2]
[362166355,1748049040599,-203.542,0.00027354,2]
[362166356,1748049040608,-799.0,0.00027354,2]
[362166357,1748049040617,-157.41,0.00027397,2]
[362166358,1748049040626,-150.0,0.000276,2]
[362166359,1748049040635,-161.18,0.00027776,2]
[362166360,1748049040644,-152.85,0.00027916,2]
[362166361,1748049040654,-1000.0,0.00028035,2]
[362166362,1748049040663,-831.87,0.00028053,2]
[362166363,1748049040672,-2607.9,0.00028172,2]
[362166364,1748049040681,-43302.21483505,0.00028235,2]
[362166365,1748049040690,-1389.08,0.0002836,2]
[362166366,1748049040699,-156.61,0.00028488,2]
[362166367,1748049040708,-156.61,0.00028509,2]
[362166368,1748049040718,-156.61,0.00028529,2]
[362166369,1748049040727,-27542.78061262,0.0002853,2]
[362166370,1748049040737,-156.61,0.00028549,2]
[362166371,1748049040746,-156.61,0.0002857,2]
[362166372,1748049040755,-156.61,0.0002859,2]
[362166373,1748049040764,-156.61,0.00028611,2]
[362166374,1748049040773,-156.61,0.00028631,2]
[362166375,1748049040787,-159.8,0.00028639,2]
[362166376,1748049040796,-150.0,0.00028681,7]
[362166377,1748049040806,-2274.15785493,0.00028719,2]
[362166378,1748049040815,-178.07,0.00028821,2]
[362166380,1748049040824,-6489.9916864,0.00028859,2]
[362166382,1748049040833,-248.24835903,0.000289,20]
[362166384,1748049040843,-200.0,0.0002892,117]
[362166386,1748049040852,-250.0,0.0002892,2]
[362166387,1748049040862,-207.09,0.00028965,120]
[362166389,1748049040872,-1102.04,0.00028965,2]
[362166391,1748049040881,-250.0,0.00029027,2]
[362166393,1748049040890,-1381.162,0.00029107,21]
[362166395,1748049040900,-165.08,0.00029126,2]
[362166397,1748049040909,-391.99046498,0.0002913,2]
[362166399,1748049040918,-23900.0,0.00029131,2]
[362166401,1748049040928,-583.39,0.00029146,2]
[362166403,1748049040938,-963.588165,0.00029192,4]
[362166405,1748049040947,-152.85,0.00029312,2]
[362166407,1748049040956,-248.24835891,0.00029383,20]
[362166409,1748049040965,-420.0,0.00029428,2]
[362166411,1748049040974,-353.35,0.00029589,2]
[362166413,1748049040983,-154.27,0.00029735,2]
[362166415,1748049040993,-431.35315736,0.00029773,5]
[362166417,1748049041003,-603.65887574,0.0002979,2]
[362166419,1748049041012,-18216.4202346,0.0002979,3]
[362166421,1748049041022,-341.73,0.000298,2]
[362166423,1748049041032,-51323.44881888,0.000298,2]
[362166425,1748049041042,-1287.0,0.000298,2]
[362166427,1748049041053,-245.89235038,0.000298,2]
[362166455,1748049041327,-206.5,0.00029815,2]
[362166457,1748049041337,-150.99,0.00029815,2]
[362166459,1748049041347,-248.24835891,0.00029866,21]
[362166461,1748049041357,-153.6696017,0.00029879,15]
[362166463,1748049041368,-898.63075109,0.00029879,2]
[362166465,1748049041378,-1000.0,0.00029885,2]
[362166467,1748049041387,-2370.27343889,0.000299,2]
[362166469,1748049041397,-367.71458536,0.000299,2]
[362166471,1748049041406,-367.71458536,0.000299,2]
[362166473,1748049041415,-367.71458536,0.000299,2]
[362166474,1748049041424,-367.71458536,0.000299,2]
[362166475,1748049041434,-151.17,0.00029969,2]
[362166476,1748049041445,-436.14281124,0.00029969,2]
[362166477,1748049041456,-71681.32522845,0.00029975,3]
[362166478,1748049041469,-1184.35570985,0.00029975,3]
[362166479,1748049041479,-19828.4424356,0.00029975,3]
[362166480,1748049041489,-999.39933592,0.00029979,2]
[362166481,1748049041501,-3796.60066408,0.00029979,2]
[362166482,1748049041510,-674.84756766,0.00029979,3]
[362166483,1748049041521,-15730.87936839,0.00029979,3]
[362166484,1748049041533,-17286.5,0.00029979,3]
[362166485,1748049041544,-16688.00930471,0.00029979,3]
[362166486,1748049041722,-607.50577251,0.00029979,3]
[362166487,1748049043349,-204.0,0.00027551,2]
[362166488,1748049043362,-367.71458536,0.000299,2]
[362166489,1748049043371,-1610.95357657,0.00029979,3]
[362166490,1748049043623,-2402.14975007,0.00029979,3]
[362166503,1748049046774,-481.65406838,0.00029979,3]
[362166615,1748049048278,182.36,0.00026527,2]
[362167596,1748049075143,780.19798622,0.00027,2]
[362167597,1748049100953,547196.10754245,0.00042535,60]
[362167606,1748049350174,372.0,0.00042535,60]
[362167607,1748049426047,738.10667872,0.00042535,120]
[362167608,1748049426331,151.0,0.00042535,120]
[362167609,1748049432868,17445.36242301,0.00042535,60]
[362167610,1748049454944,366.00428049,0.00042535,120]
[362167611,1748049522816,35078.18578742,0.00042534,60]
[362167612,1748049806696,250.0,0.00015,2]
[362167613,1748049908844,-193.89186343,0.0002,2]
[362167614,1748049932130,-646.15586811,0.0002,2]
[362167615,1748049939077,-241.7722767,0.00019999,2]
[362167617,1748050011121,-228.71930573,0.000199,3]